{"text_format":"1","workbook":"xlsx","n_sheets":12,"sheets":["ТИТУЛ","РОЗПОДІЛ","НАВЧАЛЬНА РОБОТА","МЕТОД+НАУК+ОРГАН","ЗМІНИ ТА ВИСНОВКИ","метод","наук","органз","СПИСКИ","Лист2","Лист3","Лист4"],"not_rendered":{"charts":0,"images":0,"macros":1,"external_links":0,"defined_names":23,"comments":0,"pivot_tables":0},"unopened":[],"bounds":{"document_bytes":16777216,"sheet_cells":100000,"rows_first":2000,"rows_last":500,"rows_between":2000,"halvings":0,"cell_chars":16384,"cell_head_chars":4096},"cells_cut":0,"cells_raw":0,"read":"whole","date_system":"1900"}

{"sheet":"ТИТУЛ","index":0,"n_rows":36,"n_cols":14,"rows_kept":36,"cut":false,"hidden":false,"merged":[[0,0,0,6],[18,0,18,6],[19,0,19,6],[23,0,23,6],[10,0,11,0],[8,1,8,5],[11,1,11,5],[32,5,32,6],[33,5,33,6],[7,12,8,12],[7,13,8,13],[11,12,12,12],[11,13,12,13],[23,12,24,12],[23,13,24,13],[33,12,34,12],[24,0,24,6]]}
["МІНІСТЕРСТВО ОСВІТИ І НАУКИ УКРАЇНИ                                                                                                                     ХАРКІВСЬКИЙ НАЦІОНАЛЬНИЙ ЕКОНОМІЧНИЙ УНІВЕРСИТЕТ                                      ІМЕНІ СЕМЕНА КУЗНЕЦЯ"]
[null,null,null,null,null,null,null,{"$f":"VLOOKUP(B9,СПИСКИ!$A$3:$B$9,2,FALSE)","v":201},{"$f":"VLOOKUP(H2,СПИСКИ!$D$3:$E$37,2,FALSE)","v":"Фінансів"},1,"2017 / 2018",{"$f":"IFERROR(I2,\" \")","v":"Фінансів"}]
[null,null,null,null,null,null,null,{"$f":"H2+1","v":202},{"$f":"VLOOKUP(H3,СПИСКИ!$D$3:$E$37,2,FALSE)","v":"Банківської справи і фінансових послуг"},0.75,"2018/ 2019","Банківської справи і фінансових послуг"]
[null,null,null,null,null,null,null,{"$f":"H3+1","v":203},{"$f":"VLOOKUP(H4,СПИСКИ!$D$3:$E$37,2,FALSE)","v":"Митної справи"},0.5,"2019/ 2020","Митної справи"]
[null,null,null,null,null,null,null,204,{"$f":"VLOOKUP(H5,СПИСКИ!$D$3:$E$37,2,FALSE)","v":"Обліку і бізнес-консалтингу"},0.25,"2020 / 2021","Обліку і бізнес-консалтингу"]
[null,null,null,null,null,null,null,205,{"$f":"VLOOKUP(H6,СПИСКИ!$D$3:$E$37,2,FALSE)","v":"Вищої математики та економіко-математичних методів"},null,"2021/2022","Вищої математики та економіко-математичних методів"]
[null,null,null,null,null,null,null,206,{"$f":"VLOOKUP(H7,СПИСКИ!$D$3:$E$37,2,FALSE)","v":{"$error":"#N/A"}},null,"2022/2023"," "]
[null,null,null,null,null,null,null,null,null,null,"2023/2024",null,"E","Вибрати з випадаючого списку"]
["Факультет","Фінансів і обліку"]
[]
["Кафедра"]
[null,"Фінансів",null,null,null,null,null,null,null,null,null,null,"E","Вибрати з випадаючого списку"]
[]
[]
[]
[]
[]
[]
["ІНДИВІДУАЛЬНИЙ ПЛАН"]
["РОБОТИ ВИКЛАДАЧА ТА ЇЇ ОБЛІК"]
[]
[]
[]
[null,null,null,null,null,null,null,null,null,null,null,null,"E","Ввести інформацію "]
["(прізвище, ім'я, по батькові)"]
[]
[]
[null,"працює з ",null,"по "]
[null,"працює з ",null,"по "]
[]
[]
[]
["Навчальний рік","Посада","Науковий ступінь","Вчене звання","Ставка                            або                                    її частина","Примітка"]
["2021/2022",null," ",null,null,null,null,null,null,null,null,null,"E","Вибрати з випадаючого списку, окрім позиції \"Науковий ступінь\""]
[]
[null,null,null,null,null,null,null,null,null,null,null,null,null,"Ввести інформацію в позицію \"Науковий ступінь\""]

{"sheet":"РОЗПОДІЛ","index":1,"n_rows":25,"n_cols":8,"rows_kept":25,"cut":false,"hidden":false,"merged":[[24,6,25,6],[24,7,25,7],[26,0,26,4],[10,0,10,4],[12,0,12,4],[13,0,13,2],[14,0,14,2],[16,0,16,2],[17,0,17,2],[18,0,18,2],[15,0,15,2],[21,0,21,4],[22,0,22,4],[8,0,8,4],[24,0,24,1],[0,2,1,4],[2,1,2,4],[3,0,3,4],[4,0,4,4],[5,0,5,4],[9,0,9,4]]}
[]
[null,null,null,null,null,null,{"$f":"ТИТУЛ!E34*1548","v":0}," - загальна кількость годин"]
[]
[]
[]
[]
[]
[]
[]
[]
["РОЗПОДІЛ ЗАГАЛЬНОГО РОБОЧОГО ЧАСУ"]
[]
["Повний обсяг роботи за індивідуальним планом:"]
["За видами робіт:",null,null,"План","Факт"]
["І. Навчальна",null,null,{"$f":"'НАВЧАЛЬНА РОБОТА'!AO69","v":0},{"$f":"'НАВЧАЛЬНА РОБОТА'!AP69","v":0}]
["ІІ. Методична",null,null,{"$f":"'МЕТОД+НАУК+ОРГАН'!E18","v":0},{"$f":"'МЕТОД+НАУК+ОРГАН'!F18","v":0}]
["ІII. Наукова",null,null,{"$f":"'МЕТОД+НАУК+ОРГАН'!E30","v":0},{"$f":"'МЕТОД+НАУК+ОРГАН'!F30","v":0}]
["IV. Організаційно-виховна",null,null,{"$f":"'МЕТОД+НАУК+ОРГАН'!E39","v":0},{"$f":"'МЕТОД+НАУК+ОРГАН'!F39","v":0}]
["Загальна кількість годин",null,null,{"$f":"SUM(D15:D18)","v":0},{"$f":"SUM(E15:E18)","v":0},null,{"$f":"G2-D19","v":0},{"$f":"IF(G19=0,0,\"- відхілення від норматива\")","v":0}]
[]
[null,null,null,null,null,{"$f":"774-D19","v":774}]
[]
[{"$f":"CONCATENATE(\"Індивідуальний план склав _______________________ / \",ТИТУЛ!A24,\" /\")","v":"Індивідуальний план склав _______________________ /  /"}]
[]
["План розглянуто на засіданні кафедри",null,"__.__.2021 р. Протокол №_",null,null,null,"E","внести інформацію"]

{"sheet":"НАВЧАЛЬНА РОБОТА","index":2,"n_rows":73,"n_cols":44,"rows_kept":73,"cut":false,"hidden":false,"merged":[[1,4,3,4],[1,18,2,19],[4,0,20,0],[1,14,2,15],[20,1,20,7],[1,8,2,9],[1,1,3,1],[1,2,3,2],[1,3,3,3],[1,5,3,5],[1,6,3,6],[1,16,2,17],[1,10,2,11],[1,12,2,13],[1,7,3,7],[1,0,3,0],[71,20,71,21],[71,25,71,29],[1,30,2,31],[1,34,2,35],[64,16,64,41],[67,16,67,41],[1,38,2,39],[1,40,2,41],[1,36,2,37],[1,20,1,25],[1,26,2,27],[1,28,2,29],[2,20,2,21],[2,22,2,23],[2,24,2,25],[1,32,2,33],[32,1,32,7],[21,0,32,0],[34,0,50,0],[68,0,68,7],[33,0,33,7],[63,0,63,7],[64,0,64,15],[67,0,67,15],[65,0,65,7],[66,0,66,7],[51,0,62,0],[50,1,50,7],[62,1,62,7]]}
["І. НАВЧАЛЬНА РОБОТА"]
["Форма навчання","№ п/п","Назва навчальних дисциплін                                                                             і видів навчальної роботи","Напрям, спеціальність, факультет","Мова навчання","Курс навчання","Кількість студентів","Шифр груп (потоків)","Читання лекцій",null,"Проведення практичних (семінарських) занять",null,"Проведення лабораторних занять",null,"Проведення консультацій протягом семестру",null,"Проведення екзаменаційних консультацій",null,"Перевірка контрольних робіт",null,"Керівництво і прийняття індивідуальних завдань",null,null,null,null,null,"Проведення заліку",null,"Проведення семестрових екзаменів",null,"Керівництво навчальною                  і виробничою практикою",null,"участь в ДЕК",null,"Проведення державних екзаменів",null,"Керівництво, консультування, рецензування та проведення захисту дипломних проектів (робіт)",null,"Керівництво аспірантами, здобувачами та стажуванням викладачів",null,"УСЬОГО"]
[null,null,null,null,null,null,null,null,null,null,null,null,null,null,null,null,null,null,null,null,"рефератів, аналітичних оглядів, перекладів",null,"розрахункових, графіч-них, розрахунково-графічних робіт",null,"курсових проектів, робіт "]
[null,null,null,null,null,null,null,null,"пл.","вик.","пл.","вик.","пл.","вик.","пл.","вик.","пл.","вик.","пл.","вик.","пл.","вик.","пл.","вик.","пл.","вик.","пл.","вик.","пл.","вик.","пл.","вик.","пл.","вик.","пл.","вик.","пл.","вик.","пл.","вик.","пл.","вик."]
["денна",{"$f":"IF(C5=0,0,1)","v":0},null,null,null,null,null,null,null,null,null,null,null,null,null,null,null,null,null,null,null,null,null,null,null,null,null,null,null,null,null,null,null,null,null,null,null,null,null,null,{"$f":"I5+K5+M5+O5+Q5+S5+U5+W5+Y5+AA5+AC5+AE5+AG5+AI5+AK5+AM5","v":0},{"$f":"J5+L5+N5+P5+R5+T5+V5+X5+Z5+AB5+AD5+AF5+AH5+AJ5+AL5+AN5","v":0}]
[null,2,null,null,null,null,null,null,null,null,null,null,null,null,null,null,null,null,null,null,null,null,null,null,null,null,null,null,null,null,null,null,null,null,null,null,null,null,null,null,{"$f":"I6+K6+M6+O6+Q6+S6+U6+W6+Y6+AA6+AC6+AE6+AG6+AI6+AK6+AM6","v":0},{"$f":"J6+L6+N6+P6+R6+T6+V6+X6+Z6+AB6+AD6+AF6+AH6+AJ6+AL6+AN6","v":0}]
[null,{"$f":"IF(C7=0,0,1)","v":0},null,null,null,null,null,null,null,null,null,null,null,null,null,null,null,null,null,null,null,null,null,null,null,null,null,null,null,null,null,null,null,null,null,null,null,null,null,null,0,0]
[null,0,null,null,null,null,null,null,null,null,null,null,null,null,null,null,null,null,null,null,null,null,null,null,null,null,null,null,null,null,null,null,null,null,null,null,null,null,null,null,0,0]
[null,0,null,null,null,null,null,null,null,null,null,null,null,null,null,null,null,null,null,null,null,null,null,null,null,null,null,null,null,null,null,null,null,null,null,null,null,null,null,null,0,0]
[null,0,null,null,null,null,null,null,null,null,null,null,null,null,null,null,null,null,null,null,null,null,null,null,null,null,null,null,null,null,null,null,null,null,null,null,null,null,null,null,0,0]
[null,0,null,null,null,null,null,null,null,null,null,null,null,null,null,null,null,null,null,null,null,null,null,null,null,null,null,null,null,null,null,null,null,null,null,null,null,null,null,null,0,0]
[null,0,null,null,null,null,null,null,null,null,null,null,null,null,null,null,null,null,null,null,null,null,null,null,null,null,null,null,null,null,null,null,null,null,null,null,null,null,null,null,0,{"$f":"J12+L12+N12+P12+R12+T12+V12+X12+Z12+AB12+AD12+AF12+AH12+AJ12+AL12+AN12","v":0}]
[null,0,null,null,null,null,null,null,null,null,null,null,null,null,null,null,null,null,null,null,null,null,null,null,null,null,null,null,null,null,null,null,null,null,null,null,null,null,null,null,0,0]
[null,0,null,null,null,null,null,null,null,null,null,null,null,null,null,null,null,null,null,null,null,null,null,null,null,null,null,null,null,null,null,null,null,null,null,null,null,null,null,null,0,0]
[null,0,null,null,null,null,null,null,null,null,null,null,null,null,null,null,null,null,null,null,null,null,null,null,null,null,null,null,null,null,null,null,null,null,null,null,null,null,null,null,0,0]
[null,0,null,null,null,null,null,null,null,null,null,null,null,null,null,null,null,null,null,null,null,null,null,null,null,null,null,null,null,null,null,null,null,null,null,null,null,null,null,null,0,0]
[null,0,null,null,null,null,null,null,null,null,null,null,null,null,null,null,null,null,null,null,null,null,null,null,null,null,null,null,null,null,null,null,null,null,null,null,null,null,null,null,0,0]
[null,0,null,null,null,null,null,null,null,null,null,null,null,null,null,null,null,null,null,null,null,null,null,null,null,null,null,null,null,null,null,null,null,null,null,null,null,null,null,null,0,0]
[null,0,null,null,null,null,null,null,null,null,null,null,null,null,null,null,null,null,null,null,null,null,null,null,null,null,null,null,null,null,null,null,null,null,null,null,null,null,null,null,0,0]
[null,0,null,null,null,null,null,null,null,null,null,null,null,null,null,null,null,null,null,null,null,null,null,null,null,null,null,null,null,null,null,null,null,null,null,null,null,null,null,null,0,0]
[null,"УСЬОГО денна за І семестр",null,null,null,null,null,null,{"$f":"SUM(I5:I20)","v":0},{"$f":"SUM(J5:J20)","v":0},{"$f":"SUM(K5:K20)","v":0},0,0,0,0,0,0,0,0,0,0,0,0,0,0,0,0,0,0,0,0,0,{"$f":"SUM(AG5:AG20)","v":0},{"$f":"SUM(AH5:AH20)","v":0},0,0,0,0,0,0,{"$f":"SUM(AO5:AO20)","v":0},{"$f":"SUM(AP5:AP20)","v":0}]
["заочна",{"$f":"IF(C22=0,0,1)","v":0},null,null,null,null,null,null,null,null,null,null,null,null,null,null,null,null,null,null,null,null,null,null,null,null,null,null,null,null,null,null,null,null,null,null,null,null,null,null,{"$f":"I22+K22+M22+O22+Q22+S22+U22+W22+Y22+AA22+AC22+AE22+AG22+AI22+AK22+AM22","v":0},{"$f":"J22+L22+N22+P22+R22+T22+V22+X22+Z22+AB22+AD22+AF22+AH22+AJ22+AL22+AN22","v":0}]
[null,2,null,null,null,null,null,null,null,null,null,null,null,null,null,null,null,null,null,null,null,null,null,null,null,null,null,null,null,null,null,null,null,null,null,null,null,null,null,null,0,0]
[null,3,null,null,null,null,null,null,null,null,null,null,null,null,null,null,null,null,null,null,null,null,null,null,null,null,null,null,null,null,null,null,null,null,null,null,null,null,null,null,0,0]
[null,4,null,null,null,null,null,null,null,null,null,null,null,null,null,null,null,null,null,null,null,null,null,null,null,null,null,null,null,null,null,null,null,null,null,null,null,null,null,null,0,0]
[null,5,null,null,null,null,null,null,null,null,null,null,null,null,null,null,null,null,null,null,null,null,null,null,null,null,null,null,null,null,null,null,null,null,null,null,null,null,null,null,0,0]
[null,{"$f":"IF(C27=0,0,1)","v":0},null,null,null,null,null,null,null,null,null,null,null,null,null,null,null,null,null,null,null,null,null,null,null,null,null,null,null,null,null,null,null,null,null,null,null,null,null,null,0,0]
[null,0,null,null,null,null,null,null,null,null,null,null,null,null,null,null,null,null,null,null,null,null,null,null,null,null,null,null,null,null,null,null,null,null,null,null,null,null,null,null,0,0]
[null,0,null,null,null,null,null,null,null,null,null,null,null,null,null,null,null,null,null,null,null,null,null,null,null,null,null,null,null,null,null,null,null,null,null,null,null,null,null,null,0,0]
[null,0,null,null,null,null,null,null,null,null,null,null,null,null,null,null,null,null,null,null,null,null,null,null,null,null,null,null,null,null,null,null,null,null,null,null,null,null,null,null,0,0]
[null,0,null,null,null,null,null,null,null,null,null,null,null,null,null,null,null,null,null,null,null,null,null,null,null,null,null,null,null,null,null,null,null,null,null,null,null,null,null,null,0,0]
[null,0,null,null,null,null,null,null,null,null,null,null,null,null,null,null,null,null,null,null,null,null,null,null,null,null,null,null,null,null,null,null,null,null,null,null,null,null,null,null,0,0]
[null,"УСЬОГО заочна за І семестр",null,null,null,null,null,null,{"$f":"SUM(I22:I32)","v":0},{"$f":"SUM(J22:J32)","v":0},0,0,0,0,0,0,0,0,0,0,0,0,0,0,0,0,0,0,0,0,0,0,{"$f":"SUM(AG22:AG32)","v":0},{"$f":"SUM(AH22:AH32)","v":0},0,0,0,0,0,0,{"$f":"SUM(AO22:AO32)","v":0},{"$f":"SUM(AP22:AP32)","v":0}]
["РАЗОМ ЗА І СЕМЕСТР",null,null,null,null,null,null,null,{"$f":"I21+I33","v":0},{"$f":"J21+J33","v":0},{"$f":"K21+K33","v":0},0,0,0,0,0,0,0,0,0,0,0,0,0,0,0,0,0,0,0,0,0,{"$f":"AG21+AG33","v":0},{"$f":"AH21+AH33","v":0},0,0,0,0,{"$f":"AM21+AM33","v":0},{"$f":"AN21+AN33","v":0},{"$f":"AO21+AO33","v":0},{"$f":"AP21+AP33","v":0}]
["денна",{"$f":"IF(C35=0,0,1)","v":0},null,null,null,null,null,null,null,null,null,null,null,null,null,null,null,null,null,null,null,null,null,null,null,null,null,null,null,null,null,null,null,null,null,null,null,null,null,null,0,0]
[null,2,null,null,null,null,null,null,null,null,null,null,null,null,null,null,null,null,null,null,null,null,null,null,null,null,null,null,null,null,null,null,null,null,null,null,null,null,null,null,0,0]
[null,{"$f":"IF(C37=0,0,1)","v":0},null,null,null,null,null,null,null,null,null,null,null,null,null,null,null,null,null,null,null,null,null,null,null,null,null,null,null,null,null,null,null,null,null,null,null,null,null,null,0,0]
[null,0,null,null,null,null,null,null,null,null,null,null,null,null,null,null,null,null,null,null,null,null,null,null,null,null,null,null,null,null,null,null,null,null,null,null,null,null,null,null,0,0]
[null,0,null,null,null,null,null,null,null,null,null,null,null,null,null,null,null,null,null,null,null,null,null,null,null,null,null,null,null,null,null,null,null,null,null,null,null,null,null,null,0,0]
[null,0,null,null,null,null,null,null,null,null,null,null,null,null,null,null,null,null,null,null,null,null,null,null,null,null,null,null,null,null,null,null,null,null,null,null,null,null,null,null,0,0]
[null,0,null,null,null,null,null,null,null,null,null,null,null,null,null,null,null,null,null,null,null,null,null,null,null,null,null,null,null,null,null,null,null,null,null,null,null,null,null,null,0,0]
[null,0,null,null,null,null,null,null,null,null,null,null,null,null,null,null,null,null,null,null,null,null,null,null,null,null,null,null,null,null,null,null,null,null,null,null,null,null,null,null,0,0]
[null,0,null,null,null,null,null,null,null,null,null,null,null,null,null,null,null,null,null,null,null,null,null,null,null,null,null,null,null,null,null,null,null,null,null,null,null,null,null,null,0,0]
[null,0,null,null,null,null,null,null,null,null,null,null,null,null,null,null,null,null,null,null,null,null,null,null,null,null,null,null,null,null,null,null,null,null,null,null,null,null,null,null,0,0]
[null,0,null,null,null,null,null,null,null,null,null,null,null,null,null,null,null,null,null,null,null,null,null,null,null,null,null,null,null,null,null,null,null,null,null,null,null,null,null,null,0,0]
[null,0,null,null,null,null,null,null,null,null,null,null,null,null,null,null,null,null,null,null,null,null,null,null,null,null,null,null,null,null,null,null,null,null,null,null,null,null,null,null,0,0]
[null,0,null,null,null,null,null,null,null,null,null,null,null,null,null,null,null,null,null,null,null,null,null,null,null,null,null,null,null,null,null,null,null,null,null,null,null,null,null,null,0,0]
[null,0,null,null,null,null,null,null,null,null,null,null,null,null,null,null,null,null,null,null,null,null,null,null,null,null,null,null,null,null,null,null,null,null,null,null,null,null,null,null,0,0]
[null,0,null,null,null,null,null,null,null,null,null,null,null,null,null,null,null,null,null,null,null,null,null,null,null,null,null,null,null,null,null,null,null,null,null,null,null,null,null,null,0,0]
[null,0,null,null,null,null,null,null,null,null,null,null,null,null,null,null,null,null,null,null,null,null,null,null,null,null,null,null,null,null,null,null,null,null,null,null,null,null,null,null,0,0]
[null,"УСЬОГО денна за ІІ семестр",null,null,null,null,null,null,{"$f":"SUM(I35:I50)","v":0},{"$f":"SUM(J35:J50)","v":0},0,0,0,0,0,0,0,0,0,0,0,0,0,0,{"$f":"SUM(Y35:Y50)","v":0},0,0,0,0,0,0,0,0,{"$f":"SUM(AH35:AH50)","v":0},0,0,0,0,{"$f":"SUM(AM35:AM50)","v":0},0,{"$f":"SUM(AO35:AO50)","v":0},{"$f":"SUM(AP35:AP50)","v":0}]
["заочна",{"$f":"IF(C52=0,0,1)","v":0},null,null,null,null,null,null,null,null,null,null,null,null,null,null,null,null,null,null,null,null,null,null,null,null,null,null,null,null,null,null,null,null,null,null,null,null,null,null,0,0]
[null,2,null,null,null,null,null,null,null,null,null,null,null,null,null,null,null,null,null,null,null,null,null,null,null,null,null,null,null,null,null,null,null,null,null,null,null,null,null,null,0,0]
[null,3,null,null,null,null,null,null,null,null,null,null,null,null,null,null,null,null,null,null,null,null,null,null,null,null,null,null,null,null,null,null,null,null,null,null,null,null,null,null,0,0]
[null,4,null,null,null,null,null,null,null,null,null,null,null,null,null,null,null,null,null,null,null,null,null,null,null,null,null,null,null,null,null,null,null,null,null,null,null,null,null,null,0,0]
[null,5,null,null,null,null,null,null,null,null,null,null,null,null,null,null,null,null,null,null,null,null,null,null,null,null,null,null,null,null,null,null,null,null,null,null,null,null,null,null,0,0]
[null,{"$f":"IF(C57=0,0,1)","v":0},null,null,null,null,null,null,null,null,null,null,null,null,null,null,null,null,null,null,null,null,null,null,null,null,null,null,null,null,null,null,null,null,null,null,null,null,null,null,0,0]
[null,0,null,null,null,null,null,null,null,null,null,null,null,null,null,null,null,null,null,null,null,null,null,null,null,null,null,null,null,null,null,null,null,null,null,null,null,null,null,null,0,0]
[null,0,null,null,null,null,null,null,null,null,null,null,null,null,null,null,null,null,null,null,null,null,null,null,null,null,null,null,null,null,null,null,null,null,null,null,null,null,null,null,0,0]
[null,0,null,null,null,null,null,null,null,null,null,null,null,null,null,null,null,null,null,null,null,null,null,null,null,null,null,null,null,null,null,null,null,null,null,null,null,null,null,null,0,0]
[null,0,null,null,null,null,null,null,null,null,null,null,null,null,null,null,null,null,null,null,null,null,null,null,null,null,null,null,null,null,null,null,null,null,null,null,null,null,null,null,0,0]
[null,0,null,null,null,null,null,null,null,null,null,null,null,null,null,null,null,null,null,null,null,null,null,null,null,null,null,null,null,null,null,null,null,null,null,null,null,null,null,null,{"$f":"I62+K62+M62+O62+Q62+S62+U62+W62+Y62+AA62+AC62+AE62+AG62+AI62+AK62+AM62","v":0},0]
[null,"УСЬОГО заочна за ІІ семестр",null,null,null,null,null,null,{"$f":"SUM(I52:I62)","v":0},{"$f":"SUM(J52:J62)","v":0},0,0,0,0,0,0,0,0,0,0,0,0,0,0,0,0,0,0,0,0,0,0,0,0,0,0,0,0,0,0,{"$f":"SUM(AO52:AO62)","v":0},{"$f":"SUM(AP52:AP62)","v":0}]
["РАЗОМ ЗА ІІ СЕМЕСТР",null,null,null,null,null,null,null,{"$f":"I51+I63","v":0},{"$f":"J51+J63","v":0},0,0,0,0,0,0,0,0,0,0,0,0,0,0,0,0,0,0,0,0,0,0,0,0,0,0,0,0,0,0,{"$f":"AO63+AO51","v":0},{"$f":"AP63+AP51","v":0}]
[]
["РАЗОМ за навчальний рік (денна)",null,null,null,null,null,null,null,{"$f":"I21+I51","v":0},{"$f":"J21+J51","v":0},0,0,0,0,0,0,0,0,0,0,0,0,0,0,0,0,0,0,0,0,0,0,0,{"$f":"AH21+AH51","v":0},0,0,0,0,0,0,{"$f":"AO21+AO51","v":0},{"$f":"AP21+AP51","v":0}]
["РАЗОМ за навчальний рік (заочна)",null,null,null,null,null,null,null,{"$f":"I33+I63","v":0},{"$f":"J33+J63","v":0},0,0,0,0,0,0,0,0,0,0,0,0,0,0,0,0,0,0,0,0,0,0,0,0,0,0,0,0,0,0,{"$f":"AO63+AO33","v":0},{"$f":"AP63+AP33","v":0}]
[]
["УСЬОГО за навчальний рік",null,null,null,null,null,null,null,{"$f":"I66+I67","v":0},{"$f":"J66+J67","v":0},0,0,0,0,0,0,0,0,0,0,0,0,0,0,0,0,0,0,0,0,0,0,0,0,0,0,0,0,0,0,{"$f":"AO67+AO66","v":0},{"$f":"AP67+AP66","v":0}]
[]
[null,{"$f":"CONCATENATE(\"Затверджено на  засіданні  кафедри \",РОЗПОДІЛ!C25)","v":"Затверджено на  засіданні  кафедри __.__.2021 р. Протокол №_"},null,null,null,null,null,null,null,null,null,null,null,null,null,null,null,null,null,null,null,null,{"$f":"CONCATENATE(\"Завідувач кафедри _______________________________/\",'НАВЧАЛЬНА РОБОТА'!AR71)","v":"Завідувач кафедри _______________________________/Журавльова І.В."},null,null,null,null,null,null,null,null,null,null,null,null,null,null,null,null,null,null,null,null,{"$f":"VLOOKUP(ТИТУЛ!B12,СПИСКИ!E3:F37,2,FALSE)","v":"Журавльова І.В."}]
[]
[null,{"$f":"CONCATENATE(\"Викладач  _______________________________ / \",ТИТУЛ!A24,\" /\")","v":"Викладач  _______________________________ /  /"},null,null,null,null,null,null,null,null,null,null,null,null,null,null,null,null,null,null,null,null,{"$f":"CONCATENATE(\"Декан факультету_______________________________/\",IF(ТИТУЛ!B9=СПИСКИ!A3,СПИСКИ!C3,IF(ТИТУЛ!B9=СПИСКИ!A4,СПИСКИ!C4,IF(ТИТУЛ!B9=СПИСКИ!A5,СПИСКИ!C5,IF(ТИТУЛ!B9=СПИСКИ!A6,СПИСКИ!C6,IF(ТИТУЛ!B9=СПИСКИ!A7,СПИСКИ!C7,IF(ТИТУЛ!B9=СПИСКИ!A8,СПИСКИ!C8,IF(ТИТУЛ!B9=СПИСКИ!A9,СПИСКИ!C9,0))))))))","v":"Декан факультету_______________________________/Проноза П.В."},null,null,null,null,null,null,null,null,null,null,null,null,null,null,null,null,null,null,null,null,{"$f":"VLOOKUP(ТИТУЛ!B9,СПИСКИ!A3:C9,3,FALSE)","v":"Проноза П.В."}]

{"sheet":"МЕТОД+НАУК+ОРГАН","index":3,"n_rows":40,"n_cols":7,"rows_kept":40,"cut":false,"hidden":false,"merged":[[18,1,18,4],[30,1,30,4],[39,1,39,4]]}
[null,"II.  МЕТОДИЧНА   РОБОТА"]
["№   п/п","Зміст","Підсумковий результат","Термін виконання","Плановий обсяг,                                год","Фактичний обсяг,                    год","ВВЕДІТЬ НОМЕР\nВІД 1-101"]
[{"$f":"IF(B3=0,0,1)","v":1},{"$f":"IFERROR(VLOOKUP(G3,метод!$C$14:$D$114,2,FALSE),\" \")","v":" "}]
[{"$f":"IF(B4=\" \",\" \",A3+1)","v":" "},{"$f":"IFERROR(VLOOKUP(G4,метод!$C$14:$D$114,2,FALSE),\" \")","v":" "}]
[{"$f":"IF(B5=\" \",\" \",A4+1)","v":" "},{"$f":"IFERROR(VLOOKUP(G5,метод!$C$14:$D$114,2,FALSE),\" \")","v":" "}]
[" ",{"$f":"IFERROR(VLOOKUP(G6,метод!$C$14:$D$114,2,FALSE),\" \")","v":" "}]
[" ",{"$f":"IFERROR(VLOOKUP(G7,метод!$C$14:$D$114,2,FALSE),\" \")","v":" "}]
[" ",{"$f":"IFERROR(VLOOKUP(G8,метод!$C$14:$D$114,2,FALSE),\" \")","v":" "}]
[{"$f":"IF(B9=\" \",\" \",A8+1)","v":" "},{"$f":"IFERROR(VLOOKUP(G9,метод!$C$14:$D$114,2,FALSE),\" \")","v":" "}]
[" ",{"$f":"IFERROR(VLOOKUP(G10,метод!$C$14:$D$114,2,FALSE),\" \")","v":" "}]
[" ",{"$f":"IFERROR(VLOOKUP(G11,метод!$C$14:$D$114,2,FALSE),\" \")","v":" "}]
[{"$f":"IF(B12=\" \",\" \",A11+1)","v":" "},{"$f":"IFERROR(VLOOKUP(G12,метод!$C$14:$D$114,2,FALSE),\" \")","v":" "}]
[" ",{"$f":"IFERROR(VLOOKUP(G13,метод!$C$14:$D$114,2,FALSE),\" \")","v":" "}]
[" ",{"$f":"IFERROR(VLOOKUP(G14,метод!$C$14:$D$114,2,FALSE),\" \")","v":" "}]
[" ",{"$f":"IFERROR(VLOOKUP(G15,метод!$C$14:$D$114,2,FALSE),\" \")","v":" "}]
[{"$f":"IF(B16=\" \",\" \",A15+1)","v":" "},{"$f":"IFERROR(VLOOKUP(G16,метод!$C$14:$D$114,2,FALSE),\" \")","v":" "}]
[" ",{"$f":"IFERROR(VLOOKUP(G17,метод!$C$14:$D$114,2,FALSE),\" \")","v":" "}]
[null,null,null,"Загальна кількість годин",{"$f":"SUM(E3:E17)","v":0},{"$f":"SUM(F3:F17)","v":0}]
[null,{"$f":"CONCATENATE(\"Викладач ______________      Завідувач кафедри  ____________       / \",'НАВЧАЛЬНА РОБОТА'!AR71,\" /\")","v":"Викладач ______________      Завідувач кафедри  ____________       / Журавльова І.В. /"}]
[null,"ІІІ. НАУКОВА РОБОТА"]
["№   п/п","Зміст","Підсумковий результат ","Термін виконання","Плановий обсяг,                                год ","Фактичний обсяг,                    год ","ВВЕДІТЬ НОМЕР ВІД 102-155"]
[{"$f":"IF(B22=0,0,1)","v":1},{"$f":"IFERROR(VLOOKUP(G22,наук!$C$14:$D$103,2,FALSE),\" \")","v":" "}]
[{"$f":"IF(B23=\" \",\" \",A22+1)","v":" "},{"$f":"IFERROR(VLOOKUP(G23,наук!$C$14:$D$103,2,FALSE),\" \")","v":" "}]
[{"$f":"IF(B24=\" \",\" \",A23+1)","v":" "},{"$f":"IFERROR(VLOOKUP(G24,наук!$C$14:$D$103,2,FALSE),\" \")","v":" "}]
[" ",{"$f":"IFERROR(VLOOKUP(G25,наук!$C$14:$D$103,2,FALSE),\" \")","v":" "}]
[" ",{"$f":"IFERROR(VLOOKUP(G26,наук!$C$14:$D$103,2,FALSE),\" \")","v":" "}]
[" ",{"$f":"IFERROR(VLOOKUP(G27,наук!$C$14:$D$103,2,FALSE),\" \")","v":" "}]
[" ",{"$f":"IFERROR(VLOOKUP(G28,наук!$C$14:$D$103,2,FALSE),\" \")","v":" "}]
[" ",{"$f":"IFERROR(VLOOKUP(G29,наук!$C$14:$D$103,2,FALSE),\" \")","v":" "}]
[null,null,null,"Загальна кількість годин",{"$f":"SUM(E22:E29)","v":0},{"$f":"SUM(F22:F29)","v":0}]
[null,{"$f":"B19","v":"Викладач ______________      Завідувач кафедри  ____________       / Журавльова І.В. /"}]
[null,"ІV. ОРГАНІЗАЦІЙНА РОБОТА"]
["№   п/п","Зміст","Підсумковий результат ","Термін виконання","Плановий обсяг,                                год","Фактичний обсяг,                    год","ВВЕДІТЬ НОМЕР ВІД 156-216"]
[{"$f":"IF(B34=0,0,1)","v":1},{"$f":"IFERROR(VLOOKUP(G34,органз!$C$14:$D$118,2,FALSE),\" \")","v":" "}]
[{"$f":"IF(B35=\" \",\" \",A34+1)","v":" "},{"$f":"IFERROR(VLOOKUP(G35,органз!$C$14:$D$118,2,FALSE),\" \")","v":" "}]
[{"$f":"IF(B36=\" \",\" \",A35+1)","v":" "},{"$f":"IFERROR(VLOOKUP(G36,органз!$C$14:$D$118,2,FALSE),\" \")","v":" "}]
[" ",{"$f":"IFERROR(VLOOKUP(G37,органз!$C$14:$D$118,2,FALSE),\" \")","v":" "}]
[" ",{"$f":"IFERROR(VLOOKUP(G38,органз!$C$14:$D$118,2,FALSE),\" \")","v":" "}]
[null,null,null,"Загальна кількість годин",{"$f":"SUM(E34:E38)","v":0},{"$f":"SUM(F34:F38)","v":0}]
[null,{"$f":"B19","v":"Викладач ______________      Завідувач кафедри  ____________       / Журавльова І.В. /"}]

{"sheet":"ЗМІНИ ТА ВИСНОВКИ","index":4,"n_rows":21,"n_cols":7,"rows_kept":21,"cut":false,"hidden":false,"merged":[[22,1,22,5],[19,0,19,6],[0,0,0,5],[11,1,11,5],[12,1,12,5],[13,1,13,5],[14,1,14,5],[10,0,10,6],[15,1,15,5],[16,1,16,5],[17,1,17,5],[20,1,20,5],[21,1,21,5],[23,1,23,5],[24,1,24,5],[25,1,25,5],[26,1,26,5],[27,1,27,5]]}
["V. ПЕРЕЛІК ЗМІН У ПЛАНІ РОБОТИ ВИКЛАДАЧА"]
["Семестр","Види робіт","Сутність запроваджених змін                                   та їх обґрунтування","Плановий обсяг,                                год","Фактичний обсяг,                    год","Підстава                                                  (накази, розпорядження, протоколи засідань кафедри, лікарняні листи)","Підпис  завідувача кафедри"]
[]
[]
[]
[]
[]
[]
[]
[]
["VI.  ВИСНОВОК ПРО ВИКОНАННЯ ПЛАНУ"]
["Семестр","Зміст",null,null,null,null,"Підпис  завідувача кафедри"]
[null,{"$f":"CONCATENATE(\"Звіт про виконання індивідуального плану за \",ТИТУЛ!A34,\" навчальний рік викладача \",ТИТУЛ!A24,\" розглянуто ___  _____________ 20__ р. на засіданні кафедри \",ТИТУЛ!B12,\" й ухвалено рішення (протокол №______): Індивідуальний план виконано в обсязі \",РОЗПОДІЛ!E19,\" годин.\")","v":"Звіт про виконання індивідуального плану за 2021/2022 навчальний рік викладача  розглянуто ___  _____________ 20__ р. на засіданні кафедри Фінансів й ухвалено рішення (протокол №______): Індивідуальний план виконано в обсязі 0 годин."}]
[null,"Пояснення щодо причин недовиконання:"]
[]
[]
[]
[]
[]
["VII. ЗАУВАЖЕННЯ ОСІБ, ЯКІ ПЕРЕВІРЯЮТЬ РОБОТУ КАФЕДРИ "]
["Дата","Сутність зауважень",null,null,null,null,"Підпис"]

{"sheet":"метод","index":5,"n_rows":114,"n_cols":4,"rows_kept":114,"cut":false,"hidden":false,"merged":[]}
[]
["ПП","ПЕРЕЛІК МЕТОДИЧНИХ РОБІТ","номер"]
[]
[]
[]
[]
[]
[]
[]
[]
[]
[]
["ПП","ПЕРЕЛІК МЕТОДИЧНИХ РОБІТ","номер"]
["1.1.1.1","Підготовка конспектів лекцій: за новою дисципліною",1,{"$f":"CONCATENATE(A14,\" \", B14)","v":"1.1.1.1 Підготовка конспектів лекцій: за новою дисципліною"}]
["1.1.1.2","Підготовка конспектів лекцій: оновлення конспекту лекцій",2,{"$f":"CONCATENATE(A15,\" \", B15)","v":"1.1.1.2 Підготовка конспектів лекцій: оновлення конспекту лекцій"}]
["1.1.2.1","Підготовка конспектів лекцій іноземною мовою: за новою дисципліною",3,"1.1.2.1 Підготовка конспектів лекцій іноземною мовою: за новою дисципліною"]
["1.1.2.2","Підготовка конспектів лекцій іноземною мовою:оновлення конспекту лекцій",4,"1.1.2.2 Підготовка конспектів лекцій іноземною мовою:оновлення конспекту лекцій"]
["1.1.3","Підготовка засобів активізації навчально-пізнавальної діяльності (технічної візуалізації)",5,"1.1.3 Підготовка засобів активізації навчально-пізнавальної діяльності (технічної візуалізації)"]
["1.1.4.1","Підготовка методичних матеріалів семінарських, практичних, лабораторних занять:за новою дисципліною",6,"1.1.4.1 Підготовка методичних матеріалів семінарських, практичних, лабораторних занять:за новою дисципліною"]
["1.1.4.2","Підготовка методичних матеріалів семінарських, практичних, лабораторних занять: оновлення методичних матеріалів",7,"1.1.4.2 Підготовка методичних матеріалів семінарських, практичних, лабораторних занять: оновлення методичних матеріалів"]
["1.1.5.1","Підготовка методичних матеріалів семінарських, практичних, лабораторних занять іноземною мовою:за новою дисципліною",8,"1.1.5.1 Підготовка методичних матеріалів семінарських, практичних, лабораторних занять іноземною мовою:за новою дисципліною"]
["1.1.5.2","Підготовка методичних матеріалів семінарських, практичних, лабораторних занять іноземною мовою:оновлення методичних матеріалів",9,"1.1.5.2 Підготовка методичних матеріалів семінарських, практичних, лабораторних занять іноземною мовою:оновлення методичних матеріалів"]
["1.2.1.1","Підготовка матеріалів до самостійної роботи студентів (СРС): розробка змісту та завдань до СРС",10,"1.2.1.1 Підготовка матеріалів до самостійної роботи студентів (СРС): розробка змісту та завдань до СРС"]
["1.2.1.2","Підготовка матеріалів до самостійної роботи студентів (СРС): розробка методичного супроводу щодо виконання завдань для СРС",11,"1.2.1.2 Підготовка матеріалів до самостійної роботи студентів (СРС): розробка методичного супроводу щодо виконання завдань для СРС"]
["1.2.1.3","Підготовка матеріалів до самостійної роботи студентів (СРС): оновлення методичних матеріалів СРС",12,"1.2.1.3 Підготовка матеріалів до самостійної роботи студентів (СРС): оновлення методичних матеріалів СРС"]
["1.2.2.1","Підготовка матеріалів до СРС іноземною мовою: розроблення  змісту та завдань до СРС",13,"1.2.2.1 Підготовка матеріалів до СРС іноземною мовою: розроблення  змісту та завдань до СРС"]
["1.2.2.2","Підготовка матеріалів до СРС іноземною мовою: розроблення методичного супроводу щодо виконання завдань для СРС",14,"1.2.2.2 Підготовка матеріалів до СРС іноземною мовою: розроблення методичного супроводу щодо виконання завдань для СРС"]
["1.2.2.3","Підготовка матеріалів до СРС іноземною мовою: оновлення методичних матеріалів СРС",15,"1.2.2.3 Підготовка матеріалів до СРС іноземною мовою: оновлення методичних матеріалів СРС"]
["1.2.3.1","Розроблення засобів діагностики поточного та підсумкового контролю: розробка засобів поточного контролю",16,"1.2.3.1 Розроблення засобів діагностики поточного та підсумкового контролю: розробка засобів поточного контролю"]
["1.2.3.2","Розроблення  засобів діагностики поточного та підсумкового контролю: складання екзаменаційних білетів",17,"1.2.3.2 Розроблення  засобів діагностики поточного та підсумкового контролю: складання екзаменаційних білетів"]
["1.2.3.3","Розроблення  засобів діагностики поточного та підсумкового контролю: складання екзаменаційних білетів до вступних екзаменів (письмових та усних)",18,"1.2.3.3 Розроблення  засобів діагностики поточного та підсумкового контролю: складання екзаменаційних білетів до вступних екзаменів (письмових та усних)"]
["1.2.3.4","Розроблення засобів діагностики поточного та підсумкового контролю: складання кваліфікаційних завдань до Державного екзамену",19,"1.2.3.4 Розроблення засобів діагностики поточного та підсумкового контролю: складання кваліфікаційних завдань до Державного екзамену"]
["1.2.3.5","Розроблення  засобів діагностики поточного та підсумкового контролю: складання завдань для проведення олімпіади (за наявності наказу)",20,"1.2.3.5 Розроблення  засобів діагностики поточного та підсумкового контролю: складання завдань для проведення олімпіади (за наявності наказу)"]
["1.2.3.6","Розроблення  засобів діагностики поточного та підсумкового контролю: розробка комплексних контрольних робіт для перевірки залишкових знань (за наявності наказу)",21,"1.2.3.6 Розроблення  засобів діагностики поточного та підсумкового контролю: розробка комплексних контрольних робіт для перевірки залишкових знань (за наявності наказу)"]
["1.2.4","Оновлення засобів діагностики поточного та підсумкового контролю",22,"1.2.4 Оновлення засобів діагностики поточного та підсумкового контролю"]
["1.2.5.1","Розроблення та оновлення засобів поточного та підсумкового контролю іноземною мовою: розроблення",23,"1.2.5.1 Розроблення та оновлення засобів поточного та підсумкового контролю іноземною мовою: розроблення"]
["1.2.5.2","Розроблення та оновлення засобів поточного та підсумкового контролю іноземною мовою: оновлення",24,"1.2.5.2 Розроблення та оновлення засобів поточного та підсумкового контролю іноземною мовою: оновлення"]
["1.2.6","Розроблення завдань для проведення пробного зовнішнього незалежного оцінювання навчальних досягнень випускників шкіл",25,"1.2.6 Розроблення завдань для проведення пробного зовнішнього незалежного оцінювання навчальних досягнень випускників шкіл"]
["1.2.7","Розроблення завдань для проведення учнівських олімпіад ",26,"1.2.7 Розроблення завдань для проведення учнівських олімпіад "]
["1.3.1","Розроблення авторських ігрових форм навчання (ділових, рольових, імітаційних ігор та ін.)",27,"1.3.1 Розроблення авторських ігрових форм навчання (ділових, рольових, імітаційних ігор та ін.)"]
["1.3.2.1","Розроблення авторських тренінгів: розроблення",28,"1.3.2.1 Розроблення авторських тренінгів: розроблення"]
["1.3.2.2","Розроблення авторських тренінгів: оновлення",29,"1.3.2.2 Розроблення авторських тренінгів: оновлення"]
["1.3.3","Авторська розробка кейсів, проблемних завдань та ситуацій для реалізації проблемних методів навчання, завдань та вправ для реалізації\n інтерактивних технологій навчання, диференційованого навчання, реалізації методу проектів тощо",30,"1.3.3 Авторська розробка кейсів, проблемних завдань та ситуацій для реалізації проблемних методів навчання, завдань та вправ для реалізації\n інтерактивних технологій навчання, диференційованого навчання, реалізації методу проектів тощо"]
["1.4.1.","Розроблення ПНС, що досягла контентного рівня, за новою навчальною дисципліною",31,"1.4.1. Розроблення ПНС, що досягла контентного рівня, за новою навчальною дисципліною"]
["1.4.2","Оновлення ПНС, що досягла контентного рівня",32,"1.4.2 Оновлення ПНС, що досягла контентного рівня"]
["1.4.3","Розроблення та оновлення елементів інтерактивного рівня ПНС, що досягла контентного рівня",33,"1.4.3 Розроблення та оновлення елементів інтерактивного рівня ПНС, що досягла контентного рівня"]
["1.4.4","Розроблення сертифікованої ПНС, що досягла автономного рівня",34,"1.4.4 Розроблення сертифікованої ПНС, що досягла автономного рівня"]
["1.4.5","Оновлення сертифіко-ваної ПНС, що досягла автономного рівня",35,"1.4.5 Оновлення сертифіко-ваної ПНС, що досягла автономного рівня"]
["1.5.1.1","Розроблення освітньо-професійних та освітньо-наукових програм підготовки фахівців: розроблення програм",36,"1.5.1.1 Розроблення освітньо-професійних та освітньо-наукових програм підготовки фахівців: розроблення програм"]
["1.5.1.2","Розроблення освітньо-професійних та освітньо-наукових програм підготовки фахівців: оновлення програм",37,"1.5.1.2 Розроблення освітньо-професійних та освітньо-наукових програм підготовки фахівців: оновлення програм"]
["1.5.2.1","Розроблення концепції освітньої діяльності за спеціальністю на певному рівні: розроблення концепції",38,"1.5.2.1 Розроблення концепції освітньої діяльності за спеціальністю на певному рівні: розроблення концепції"]
["1.5.2.2","Розроблення концепції освітньої діяльності за спеціальністю на певному рівні: оновлення концепції",39,"1.5.2.2 Розроблення концепції освітньої діяльності за спеціальністю на певному рівні: оновлення концепції"]
["1.5.3","Підготовка ліцензійних справ",40,"1.5.3 Підготовка ліцензійних справ"]
["1.5.4","Підготовка акредитаційних справ",41,"1.5.4 Підготовка акредитаційних справ"]
["1.5.5.1","Підготовка навчальних планів та робочих навчальних планів відповідних освітньо-професійних та освітньо-наукових програм: підготовка робочого плану",42,"1.5.5.1 Підготовка навчальних планів та робочих навчальних планів відповідних освітньо-професійних та освітньо-наукових програм: підготовка робочого плану"]
["1.5.5.2","Підготовка навчальних планів та робочих навчальних планів відповідних освітньо-професійних та освітньо-наукових програм: підготовка навчального плану",43,"1.5.5.2 Підготовка навчальних планів та робочих навчальних планів відповідних освітньо-професійних та освітньо-наукових програм: підготовка навчального плану"]
["1.5.6.1","Розроблення робочих програм навчальних дисциплін (РПНД): розроблення робочої навчальної програми",44,"1.5.6.1 Розроблення робочих програм навчальних дисциплін (РПНД): розроблення робочої навчальної програми"]
["1.5.6.2","Розроблення робочих програм навчальних дисциплін (РПНД): оновлення",45,"1.5.6.2 Розроблення робочих програм навчальних дисциплін (РПНД): оновлення"]
["1.5.7.1","Розроблення силабусу навчальної дисципліни: розроблення силабусу навчальної дисципліни",46,"1.5.7.1 Розроблення силабусу навчальної дисципліни: розроблення силабусу навчальної дисципліни"]
["1.5.7.2","Розроблення силабусу навчальної дисципліни: оновлення силабусу навчальної дисципліни",47,"1.5.7.2 Розроблення силабусу навчальної дисципліни: оновлення силабусу навчальної дисципліни"]
["1.6.1.1","Проведення консультацій із навчальних дисциплін протягом семестру: від загального обсягу навчального часу, відведеного на вивчення навчальної дисципліни на академічну групу для денної форми навчання",48,"1.6.1.1 Проведення консультацій із навчальних дисциплін протягом семестру: від загального обсягу навчального часу, відведеного на вивчення навчальної дисципліни на академічну групу для денної форми навчання"]
["1.6.1.2","Проведення консультацій із навчальних дисциплін протягом семестру: від загального обсягу навчального часу, відведеного на вивчення навчальної дисципліни на академічну групу для заочної форми навчання",49,"1.6.1.2 Проведення консультацій із навчальних дисциплін протягом семестру: від загального обсягу навчального часу, відведеного на вивчення навчальної дисципліни на академічну групу для заочної форми навчання"]
["1.6.2.1","Проведення екзаменнаційних консультацій: вступний екзамен",50,"1.6.2.1 Проведення екзаменнаційних консультацій: вступний екзамен"]
["1.6.2.2","Проведення екзаменнаційних консультацій: семестровий екзамен",51,"1.6.2.2 Проведення екзаменнаційних консультацій: семестровий екзамен"]
["1.6.2.3","Проведення екзаменнаційних консультацій: підсумковий екзамен",52,"1.6.2.3 Проведення екзаменнаційних консультацій: підсумковий екзамен"]
["1.6.3","Перевірка контрольних (модульних) робіт, передбачених навчальним планом, що виконуються під час аудиторних занять",53,"1.6.3 Перевірка контрольних (модульних) робіт, передбачених навчальним планом, що виконуються під час аудиторних занять"]
["1.6.4","Перевірка і приймання контрольних (модульних) робіт, передбачених навчальним планом, що виконуються під час самостійної роботи",54,"1.6.4 Перевірка і приймання контрольних (модульних) робіт, передбачених навчальним планом, що виконуються під час самостійної роботи"]
["1.6.5","Проведення заліку",55,"1.6.5 Проведення заліку"]
["1.6.6.1","Проведення семестрових екзаменів: в усній формі (тільки для заочної форми навчання)",56,"1.6.6.1 Проведення семестрових екзаменів: в усній формі (тільки для заочної форми навчання)"]
["1.6.6.2","Проведення семестрових екзаменів: у письмовій формі",57,"1.6.6.2 Проведення семестрових екзаменів: у письмовій формі"]
["1.6.7.1","Консультування та рецензування  дипломних проектів (робіт): перший (бакалаврський) рівень",58,"1.6.7.1 Консультування та рецензування  дипломних проектів (робіт): перший (бакалаврський) рівень"]
["1.6.7.2","Консультування та рецензування  дипломних проектів (робіт): другий (магістерський) рівень",59,"1.6.7.2 Консультування та рецензування  дипломних проектів (робіт): другий (магістерський) рівень"]
["2.1.1","Підготовка методичних рекомендацій до практичних занять з навчальної дисципліни / Практикуму",60,"2.1.1 Підготовка методичних рекомендацій до практичних занять з навчальної дисципліни / Практикуму"]
["2.1.2","Підготовка методичних рекомендацій до самостійної роботи з навчальної дисципліни",61,"2.1.2 Підготовка методичних рекомендацій до самостійної роботи з навчальної дисципліни"]
["2.1.3","Підготовка методичних рекомендацій до лабораторних занять з навчальної дисципліни / лабораторного практикуму",62,"2.1.3 Підготовка методичних рекомендацій до лабораторних занять з навчальної дисципліни / лабораторного практикуму"]
["2.1.4","Підготовка методичних рекомендацій до про-ведення лабораторних робіт у віртуальних середовищах (господарських організаціях, фінансових установах, їхніх функціональних підрозділах)",63,"2.1.4 Підготовка методичних рекомендацій до про-ведення лабораторних робіт у віртуальних середовищах (господарських організаціях, фінансових установах, їхніх функціональних підрозділах)"]
["2.1.5","Підготовка методичних рекомендацій до тренінгів",64,"2.1.5 Підготовка методичних рекомендацій до тренінгів"]
["2.1.6","Підготовка методичних рекомендацій до проходження практики (навчальної, виробничої, науково-дослідної, переддипломної, тощо)",65,"2.1.6 Підготовка методичних рекомендацій до проходження практики (навчальної, виробничої, науково-дослідної, переддипломної, тощо)"]
["2.1.7","Підготовка методичних рекомендацій до виконання курсових (консультаційних) робіт (проектів)",66,"2.1.7 Підготовка методичних рекомендацій до виконання курсових (консультаційних) робіт (проектів)"]
["2.1.8","Підготовка методичних рекомендацій до написання дипломних робіт (проектів)",67,"2.1.8 Підготовка методичних рекомендацій до написання дипломних робіт (проектів)"]
["2.1.9","Підготовка збірника (задач, завдань, вправ, тестів)",68,"2.1.9 Підготовка збірника (задач, завдань, вправ, тестів)"]
["2.1.10","Підготовка курсу лекцій / конспекту лекцій",69,"2.1.10 Підготовка курсу лекцій / конспекту лекцій"]
["2.1.11","Підготовка словника, хрестоматії, довідника, тощо ",70,"2.1.11 Підготовка словника, хрестоматії, довідника, тощо "]
["2.1.12","Підготовка навчального посібника ",71,"2.1.12 Підготовка навчального посібника "]
["2.1.13","Підготовка підручника",72,"2.1.13 Підготовка підручника"]
["2.1.14","Навчально-методичного (або науково-методичного) комплексу ",73,"2.1.14 Навчально-методичного (або науково-методичного) комплексу "]
["2.1.15","Підготовка навчально-методичної літератури іноземною мовою",74,"2.1.15 Підготовка навчально-методичної літератури іноземною мовою"]
["2.1.16","Розроблення інформаційних матеріалів про освітньо-професійні програми, спеціалізації, кафедри (буклети, плакати, презентації тощо)",75,"2.1.16 Розроблення інформаційних матеріалів про освітньо-професійні програми, спеціалізації, кафедри (буклети, плакати, презентації тощо)"]
["2.2.1","Розроблення початкового формату електронного мультимедійного інтерактивного видання ",76,"2.2.1 Розроблення початкового формату електронного мультимедійного інтерактивного видання "]
["2.2.2","Початковий формат електронного мультимедійного інтерактивного видання в разі наявності опублікованого видання та 50 % не оновленого змісту",77,"2.2.2 Початковий формат електронного мультимедійного інтерактивного видання в разі наявності опублікованого видання та 50 % не оновленого змісту"]
["2.2.3","Створення електронного мультимедійного інтерактивного видання (на базі початкового формату) з елементами початкової інтерактивності",78,"2.2.3 Створення електронного мультимедійного інтерактивного видання (на базі початкового формату) з елементами початкової інтерактивності"]
["2.2.4.1","Створення додаткових елементів мультимедійності: створення фрагментів відео-лекцій та відео-уроків  (5-10 хвилин)",79,"2.2.4.1 Створення додаткових елементів мультимедійності: створення фрагментів відео-лекцій та відео-уроків  (5-10 хвилин)"]
["2.2.4.2","Створення додаткових елементів мультимедійності: створення анімаційних роликів",80,{"$f":"CONCATENATE(A93,\" \", B93)","v":"2.2.4.2 Створення додаткових елементів мультимедійності: створення анімаційних роликів"}]
["2.2.5","Створення адаптивності електронного мультимедійного інтерактивного видання",81,"2.2.5 Створення адаптивності електронного мультимедійного інтерактивного видання"]
["2.2.6","Створення навчальних елементів середньої інтерактивності електронного мультимедійного інтерактивного видання, які створюють умовні переходи за результатами розумової діяльності студента ",82,"2.2.6 Створення навчальних елементів середньої інтерактивності електронного мультимедійного інтерактивного видання, які створюють умовні переходи за результатами розумової діяльності студента "]
["2.2.7","Створення навчальних елементів високої інтерактивності електронного мультимедійного інтерактивного видання ",83,"2.2.7 Створення навчальних елементів високої інтерактивності електронного мультимедійного інтерактивного видання "]
["2.3.1","Розроблення віртуального навчального середовища",84,"2.3.1 Розроблення віртуального навчального середовища"]
["2.3.2","Розроблення програмних засобів для математичного й імітаційного моделювання",85,"2.3.2 Розроблення програмних засобів для математичного й імітаційного моделювання"]
["2.3.3","Розроблення програмних засобів для контролю й вимірювання рівня навчальних досягнень студентів",86,"2.3.3 Розроблення програмних засобів для контролю й вимірювання рівня навчальних досягнень студентів"]
["2.3.4","Розроблення електронних тренажерів",87,"2.3.4 Розроблення електронних тренажерів"]
["3.1.1","Створення / адаптація віртуальних середовищ (господарські організації, фінансові установи, їх функціональні підрозділи)",88,"3.1.1 Створення / адаптація віртуальних середовищ (господарські організації, фінансові установи, їх функціональні підрозділи)"]
["3.1.2","Організація проведення комп’ютерних бізнес-симуляцій",89,"3.1.2 Організація проведення комп’ютерних бізнес-симуляцій"]
["3.2.1","Організація та проведення методичних заходів кафедри",90,"3.2.1 Організація та проведення методичних заходів кафедри"]
["3.2.2","Організація та проведення методичних міжкафедральних семінарів",91,"3.2.2 Організація та проведення методичних міжкафедральних семінарів"]
["3.2.3","Організація та проведення методичних загально-університетських семінарів (тренінгів, круглих столів)",92,"3.2.3 Організація та проведення методичних загально-університетських семінарів (тренінгів, круглих столів)"]
["3.2.4","Перевірка виконання студентами ректорської контрольної роботи, ККР (зрізи залишкових знань)",93,"3.2.4 Перевірка виконання студентами ректорської контрольної роботи, ККР (зрізи залишкових знань)"]
["3.3","Взаємовідвідування занять",94,"3.3 Взаємовідвідування занять"]
["3.4","Ведення електронного журналу (в корпоративній мережі)",95,"3.4 Ведення електронного журналу (в корпоративній мережі)"]
["3.5","Переклад методичної літератури та інших матеріалів за дорученням адміністрації університету",96,"3.5 Переклад методичної літератури та інших матеріалів за дорученням адміністрації університету"]
["3.6","Відповідальний за навчальну роботу на кафедрі",97,"3.6 Відповідальний за навчальну роботу на кафедрі"]
["3.7","Відповідальний за методичну роботу на кафедрі",98,"3.7 Відповідальний за методичну роботу на кафедрі"]
["3.8","Відповідальний за ПНС по кафедрі  ",99,"3.8 Відповідальний за ПНС по кафедрі  "]
["3.9","Відповідальний за організацію практик на кафедрі ",100,"3.9 Відповідальний за організацію практик на кафедрі "]
["3.10","Методична робота за дорученням адміністрації ",101,"3.10 Методична робота за дорученням адміністрації "]

{"sheet":"наук","index":6,"n_rows":67,"n_cols":4,"rows_kept":67,"cut":false,"hidden":false,"merged":[]}
[]
["ПП","ПЕРЕЛІК НАУКОВИХ РОБІТ","номер"]
[]
[]
[]
[]
[]
[]
[]
[]
[]
[]
["ПП","ПЕРЕЛІК НАУКОВИХ РОБІТ","номер"]
["1.1.1","Виконання планових наукових досліджень: керівнику",102,{"$f":"CONCATENATE(A14,\" \",B14)","v":"1.1.1 Виконання планових наукових досліджень: керівнику"}]
["1.1.2","Виконання планових наукових досліджень: виконавцю",103,{"$f":"CONCATENATE(A15,\" \",B15)","v":"1.1.2 Виконання планових наукових досліджень: виконавцю"}]
["1.2.1","Розробка інноваційно-дослідницьких проектів: керівнику",104,"1.2.1 Розробка інноваційно-дослідницьких проектів: керівнику"]
["1.2.2","Розробка інноваційно-дослідницьких проектів: виконавцю",105,"1.2.2 Розробка інноваційно-дослідницьких проектів: виконавцю"]
["2.1.1","Винахідницька робота викладача: міжнародні патенти",106,"2.1.1 Винахідницька робота викладача: міжнародні патенти"]
["2.1.2","Винахідницька робота викладача: патенти",107,"2.1.2 Винахідницька робота викладача: патенти"]
["2.1.3","Винахідницька робота викладача:  патенти на корисну модель",108,"2.1.3 Винахідницька робота викладача:  патенти на корисну модель"]
["2.1.4","Винахідницька робота викладача: свідоцтва на твір",109,"2.1.4 Винахідницька робота викладача: свідоцтва на твір"]
["3.1.1.1","Публікація монографії у вітчизняних   видавництвах: колективна монографія",110,"3.1.1.1 Публікація монографії у вітчизняних   видавництвах: колективна монографія"]
["3.1.1.2","Публікація монографії у вітчизняних   видавництвах: одноосібна монографія",111,"3.1.1.2 Публікація монографії у вітчизняних   видавництвах: одноосібна монографія"]
["3.1.2.1","Публікація монографії у закордонних видавництвах: колективна монографія",112,"3.1.2.1 Публікація монографії у закордонних видавництвах: колективна монографія"]
["3.1.2.2","Публікація монографії у закордонних видавництвах: одноосібна монографія",113,"3.1.2.2 Публікація монографії у закордонних видавництвах: одноосібна монографія"]
["3.2.1","Публікація наукових статей: у журналах, що індексуються у міжнародних  наукометричних базах Scopus, Web of Science",114,"3.2.1 Публікація наукових статей: у журналах, що індексуються у міжнародних  наукометричних базах Scopus, Web of Science"]
["3.2.2","Публікація наукових статей: у наукових виданнях, що індексуються у інших міжнародних наукометричних базах",115,"3.2.2 Публікація наукових статей: у наукових виданнях, що індексуються у інших міжнародних наукометричних базах"]
["3.2.3","Публікація наукових статей: у закордонних журналах",116,"3.2.3 Публікація наукових статей: у закордонних журналах"]
["3.2.4","Публікація наукових статей: у фахових вітчизняних виданнях",117,"3.2.4 Публікація наукових статей: у фахових вітчизняних виданнях"]
["3.2.5","Публікація наукових статей: у вітчизняних виданнях (що не входять до наукометричних баз даних)",118,"3.2.5 Публікація наукових статей: у вітчизняних виданнях (що не входять до наукометричних баз даних)"]
["3.3.1","Публікація тез доповідей: тези доповіді в зарубіжних виданнях",119,"3.3.1 Публікація тез доповідей: тези доповіді в зарубіжних виданнях"]
["3.3.2","Публікація тез доповідей: тези доповіді на конференціях, симпозіумах, семінарах (міжнародних, вітчизняних та ін.):",120,"3.3.2 Публікація тез доповідей: тези доповіді на конференціях, симпозіумах, семінарах (міжнародних, вітчизняних та ін.):"]
["3.4","Публікація наукових статей та тез доповіді іноземною мовою",121,"3.4 Публікація наукових статей та тез доповіді іноземною мовою"]
["4.1.1","Захист дисертацій: на здобуття ступеня доктора наук",122,"4.1.1 Захист дисертацій: на здобуття ступеня доктора наук"]
["4.1.2","Захист дисертацій: на здобуття ступеня доктора філософії",123,"4.1.2 Захист дисертацій: на здобуття ступеня доктора філософії"]
["4.2","Складання кандидатських екзаменів ",124,"4.2 Складання кандидатських екзаменів "]
["5.1.1","Керівництво науковою роботою студентів: з підготовки наукових статей",125,"5.1.1 Керівництво науковою роботою студентів: з підготовки наукових статей"]
["5.1.2","Керівництво науковою роботою студентів: з підготовки тез доповідей на конференцію",126,"5.1.2 Керівництво науковою роботою студентів: з підготовки тез доповідей на конференцію"]
["5.1.3","Керівництво науковою роботою студентів: з підготовки заявок на видачу охоронних документів",127,"5.1.3 Керівництво науковою роботою студентів: з підготовки заявок на видачу охоронних документів"]
["5.2.1.1","Підготовка студентів-переможців та призерів до участі у конкурсах: міжнародний рівень",128,"5.2.1.1 Підготовка студентів-переможців та призерів до участі у конкурсах: міжнародний рівень"]
["5.2.1.2","Підготовка студентів-переможців та призерів до участі у конкурсах: всеукраїнський рівень, 1 етап",129,"5.2.1.2 Підготовка студентів-переможців та призерів до участі у конкурсах: всеукраїнський рівень, 1 етап"]
["5.2.1.3","Підготовка студентів-переможців та призерів до участі у конкурсах: всеукраїнський рівень, 2 етап",130,"5.2.1.3 Підготовка студентів-переможців та призерів до участі у конкурсах: всеукраїнський рівень, 2 етап"]
["5.2.1.4","Підготовка студентів-переможців та призерів до участі у конкурсах: регіональний рівень",131,"5.2.1.4 Підготовка студентів-переможців та призерів до участі у конкурсах: регіональний рівень"]
["5.2.1.5","Підготовка студентів-переможців та призерів до участі у конкурсах: університетський рівень",132,"5.2.1.5 Підготовка студентів-переможців та призерів до участі у конкурсах: університетський рівень"]
["5.2.2.1","Підготовка студентів-переможців та призерів до участі в олімпіаді: міжнародний рівень",133,"5.2.2.1 Підготовка студентів-переможців та призерів до участі в олімпіаді: міжнародний рівень"]
["5.2.2.2","Підготовка студентів-переможців та призерів до участі в олімпіаді: всеукраїнський рівень, 1 етап",134,"5.2.2.2 Підготовка студентів-переможців та призерів до участі в олімпіаді: всеукраїнський рівень, 1 етап"]
["5.2.2.3","Підготовка студентів-переможців та призерів до участі в олімпіаді: всеукраїнський рівень, 2 етап",135,"5.2.2.3 Підготовка студентів-переможців та призерів до участі в олімпіаді: всеукраїнський рівень, 2 етап"]
["5.2.2.4","Підготовка студентів-переможців та призерів до участі в олімпіаді: регіональний рівень",136,"5.2.2.4 Підготовка студентів-переможців та призерів до участі в олімпіаді: регіональний рівень"]
["5.2.2.5","Підготовка студентів-переможців та призерів до участі в олімпіаді: університетський рівень",137,"5.2.2.5 Підготовка студентів-переможців та призерів до участі в олімпіаді: університетський рівень"]
["5.3","Керівництво студентським науковим гуртком, групою з науково-дослідної проблеми",138,"5.3 Керівництво студентським науковим гуртком, групою з науково-дослідної проблеми"]
["6.1.1.1","Організація та проведення наукових конференцій, симпозіумів, семінарів для студентів, аспірантів та викладачів - Міжнародні заходи: голова оргкомітету",139,"6.1.1.1 Організація та проведення наукових конференцій, симпозіумів, семінарів для студентів, аспірантів та викладачів - Міжнародні заходи: голова оргкомітету"]
["6.1.1.2","Організація та проведення наукових конференцій, симпозіумів, семінарів для студентів, аспірантів та викладачів - Міжнародні заходи : секретар, члени оргкомітету,  керівники секції",140,"6.1.1.2 Організація та проведення наукових конференцій, симпозіумів, семінарів для студентів, аспірантів та викладачів - Міжнародні заходи : секретар, члени оргкомітету,  керівники секції"]
["6.1.2.1","Організація та проведення наукових конференцій, симпозіумів, семінарів для студентів, аспірантів та викладачів - Всеукраїнські заходи: голова оргкомітету",141,"6.1.2.1 Організація та проведення наукових конференцій, симпозіумів, семінарів для студентів, аспірантів та викладачів - Всеукраїнські заходи: голова оргкомітету"]
["6.1.2.2","Організація та проведення наукових конференцій, симпозіумів, семінарів для студентів, аспірантів та викладачів - Всеукраїнські заходи: секретар, члени оргкомітету,  керівники секції",142,"6.1.2.2 Організація та проведення наукових конференцій, симпозіумів, семінарів для студентів, аспірантів та викладачів - Всеукраїнські заходи: секретар, члени оргкомітету,  керівники секції"]
["6.1.3.1","Організація та проведення наукових конференцій, симпозіумів, семінарів для студентів, аспірантів та викладачів - Міжуніверситетські, міжфакультетські, міжкафедральні заходи : голова оргкомітету",143,"6.1.3.1 Організація та проведення наукових конференцій, симпозіумів, семінарів для студентів, аспірантів та викладачів - Міжуніверситетські, міжфакультетські, міжкафедральні заходи : голова оргкомітету"]
["6.1.3.2","Організація та проведення наукових конференцій, симпозіумів, семінарів для студентів, аспірантів та викладачів - Міжуніверситетські, міжфакультетські, міжкафедральні заходи  : секретар, члени оргкомітету,  керівники секції",144,"6.1.3.2 Організація та проведення наукових конференцій, симпозіумів, семінарів для студентів, аспірантів та викладачів - Міжуніверситетські, міжфакультетські, міжкафедральні заходи  : секретар, члени оргкомітету,  керівники секції"]
["6.1.4","Перевірка наукових проектів здобувачів ступеня доктора філософії",145,"6.1.4 Перевірка наукових проектів здобувачів ступеня доктора філософії"]
["6.1.5","Захист наукових проектів здобувачів ступеня доктора філософії",146,"6.1.5 Захист наукових проектів здобувачів ступеня доктора філософії"]
["6.2.1","Організація та проведення телеконференцій, вебінарів: міжнародні заходи",147,"6.2.1 Організація та проведення телеконференцій, вебінарів: міжнародні заходи"]
["6.2.2","Організація та проведення телеконференцій, вебінарів: всеукраїнські заходи",148,"6.2.2 Організація та проведення телеконференцій, вебінарів: всеукраїнські заходи"]
["6.3","Керівництво науковою школою",149,"6.3 Керівництво науковою школою"]
["6.4","Відповідальний за наукову роботу на кафедрі",150,"6.4 Відповідальний за наукову роботу на кафедрі"]
["6.5.1","Рецензування дисертацій (розширене засідання кафедри), авто-рефератів на здобуття ступеня доктора філософії, доктора наук, періодичних видань, монографій, підручників, навчальних посібників, наукових статей, студентських наукових робіт",151,"6.5.1 Рецензування дисертацій (розширене засідання кафедри), авто-рефератів на здобуття ступеня доктора філософії, доктора наук, періодичних видань, монографій, підручників, навчальних посібників, наукових статей, студентських наукових робіт"]
["6.5.2","Рецензування видань іноземною мовою (окрім російської)",152,"6.5.2 Рецензування видань іноземною мовою (окрім російської)"]
["6.6.1","Робота в редколегіях наукових журналів, у редакційних радах збірників праць та ін.: голова редколегії",153,"6.6.1 Робота в редколегіях наукових журналів, у редакційних радах збірників праць та ін.: голова редколегії"]
["6.6.2","Робота в редколегіях наукових журналів, у редакційних радах збірників праць та ін.: заступник голови редколегії",154,"6.6.2 Робота в редколегіях наукових журналів, у редакційних радах збірників праць та ін.: заступник голови редколегії"]
["6.6.3","Робота в редколегіях наукових журналів, у редакційних радах збірників праць та ін.: члени редколегії",155,"6.6.3 Робота в редколегіях наукових журналів, у редакційних радах збірників праць та ін.: члени редколегії"]

{"sheet":"органз","index":7,"n_rows":74,"n_cols":4,"rows_kept":74,"cut":false,"hidden":false,"merged":[]}
[]
["ПП","ПЕРЕЛІК ОРГАНІЗАЦІЙНИХ РОБІТ","номер"]
[]
[]
[]
[]
[]
[]
[]
[]
[]
[]
["ПП","ПЕРЕЛІК ОРГАНІЗАЦІЙНИХ РОБІТ","номер"]
["1.1.1","Робота в експертній раді МОН України:  (акредитація та ліцензування, наукові ступені)",156,{"$f":"CONCATENATE(A14,\" \", B14)","v":"1.1.1 Робота в експертній раді МОН України:  (акредитація та ліцензування, наукові ступені)"}]
["1.1.2","Робота в експертних радах міністерств та відомств ",157,{"$f":"CONCATENATE(A15,\" \", B15)","v":"1.1.2 Робота в експертних радах міністерств та відомств "}]
["1.1.3","Робота в колегіях МОН України (загальна участь, участь у проведенні атестацій)",158,"1.1.3 Робота в колегіях МОН України (загальна участь, участь у проведенні атестацій)"]
["1.1.4","Робота в науково-методичних комісіях ",159,"1.1.4 Робота в науково-методичних комісіях "]
["1.1.5","Робота в робочих групах міністерств ",160,"1.1.5 Робота в робочих групах міністерств "]
["1.1.6","Робота в колегіях облдержадміністрації",161,"1.1.6 Робота в колегіях облдержадміністрації"]
["1.1.7","Робота в комітетах різних рівнів ",162,"1.1.7 Робота в комітетах різних рівнів "]
["1.2","Робота в Акредитаційній комісії  України, експертних і фахових радах",163,"1.2 Робота в Акредитаційній комісії  України, експертних і фахових радах"]
["1.3.1","Робота в спеціалізованих радах із захисту дисертацій: голова спеціалізованої ради",164,"1.3.1 Робота в спеціалізованих радах із захисту дисертацій: голова спеціалізованої ради"]
["1.3.2","Робота в спеціалізованих радах із захисту дисертацій: заступник голови спеціалізованої ради",165,"1.3.2 Робота в спеціалізованих радах із захисту дисертацій: заступник голови спеціалізованої ради"]
["1.3.3","Робота в спеціалізованих радах із захисту дисертацій: вчений секретар та члени спеціалізованої ради",166,"1.3.3 Робота в спеціалізованих радах із захисту дисертацій: вчений секретар та члени спеціалізованої ради"]
["1.3.4","Робота в спеціалізованих радах із захисту дисертацій: експерт дисертації док-тора наук у спеціалізованій раді, науковому семінарі зі спеціальності та на кафедрі",167,"1.3.4 Робота в спеціалізованих радах із захисту дисертацій: експерт дисертації док-тора наук у спеціалізованій раді, науковому семінарі зі спеціальності та на кафедрі"]
["1.3.5","Робота в спеціалізованих радах із захисту дисертацій: експерт дисертації доктора філософії у спеціалізованій раді, нау-ковому семінарі зі спеціальності та на кафедрі",168,"1.3.5 Робота в спеціалізованих радах із захисту дисертацій: експерт дисертації доктора філософії у спеціалізованій раді, нау-ковому семінарі зі спеціальності та на кафедрі"]
["1.4.1","Робота у вченій раді університету",169,"1.4.1 Робота у вченій раді університету"]
["1.4.2","Робота у КТК університету",170,"1.4.2 Робота у КТК університету"]
["1.4.3","Робота в науково-методичних радах і комісіях факультету",171,"1.4.3 Робота в науково-методичних радах і комісіях факультету"]
["1.4.4.1","Робота у вченій раді факультету",172,"1.4.4.1 Робота у вченій раді факультету"]
["1.4.4.2","Виконання обов'язків секретаря вченої ради факультету",173,"1.4.4.2 Виконання обов'язків секретаря вченої ради факультету"]
["1.4.5","Робота в атестаційній комісії кафедри",174,"1.4.5 Робота в атестаційній комісії кафедри"]
["1.4.6","Робота в комісії із захисту дисертацій аспіран-тів / докторантів",175,"1.4.6 Робота в комісії із захисту дисертацій аспіран-тів / докторантів"]
["1.4.7","Робота в науково-екс-пертній комісії ХНЕУ ім. С. Кузнеця",176,"1.4.7 Робота в науково-екс-пертній комісії ХНЕУ ім. С. Кузнеця"]
["1.5","Участь у засіданнях кафедри (організація, підготовка, доповідь)",177,"1.5 Участь у засіданнях кафедри (організація, підготовка, доповідь)"]
["1.6.1","Робота в приймальній комісії університету: Виконання обов'язків відповідального секретаря (заступника відповідального секретаря) приймальної комісії ",178,"1.6.1 Робота в приймальній комісії університету: Виконання обов'язків відповідального секретаря (заступника відповідального секретаря) приймальної комісії "]
["1.6.2","Робота в приймальній комісії університету: Виконання обов'язків уповноваженої особи приймальної комісії з питань прийняття та розгляду електронних заяв",179,"1.6.2 Робота в приймальній комісії університету: Виконання обов'язків уповноваженої особи приймальної комісії з питань прийняття та розгляду електронних заяв"]
["1.6.3","Робота в приймальній комісії університету: Розроблення правил прийому до університету ",180,"1.6.3 Робота в приймальній комісії університету: Розроблення правил прийому до університету "]
["1.6.4","Робота в приймальній комісії університету: Робота у відбіркових комісіях під час вступної кампанії ",181,"1.6.4 Робота в приймальній комісії університету: Робота у відбіркових комісіях під час вступної кампанії "]
["1.7","Робота в комісії з питань запобігання та виявлення корупції серед працівників університету",182,"1.7 Робота в комісії з питань запобігання та виявлення корупції серед працівників університету"]
["2.1.1","Участь в організації та проведенні позанавчальних культурно-спортивних заходів для студентів",183,"2.1.1 Участь в організації та проведенні позанавчальних культурно-спортивних заходів для студентів"]
["2.1.2","Участь в організації та проведенні спортивно-виховної роботи зі студентами у гуртожитках",184,"2.1.2 Участь в організації та проведенні спортивно-виховної роботи зі студентами у гуртожитках"]
["2.1.3","Участь в організації та проведенні заходів щодо розвитку навичок самоврядування та громадської діяльності у студентів, а саме: конференцій, форумів, тренінгів тощо",185,"2.1.3 Участь в організації та проведенні заходів щодо розвитку навичок самоврядування та громадської діяльності у студентів, а саме: конференцій, форумів, тренінгів тощо"]
["2.1.4","Участь в організації та проведенні конкурсів професійної майстерності за пріоритетними напрямами розвитку університету",186,"2.1.4 Участь в організації та проведенні конкурсів професійної майстерності за пріоритетними напрямами розвитку університету"]
["2.1.5","Участь в організації та проведенні спортивно-оздоровчих заходів для НПП і співробітників університету",187,"2.1.5 Участь в організації та проведенні спортивно-оздоровчих заходів для НПП і співробітників університету"]
["2.1.6","Участь в організації та проведенні культурно-масових заходів для НПП і співробітників університету",188,"2.1.6 Участь в організації та проведенні культурно-масових заходів для НПП і співробітників університету"]
["2.2.1","Виконання обов'язків куратора академічної групи: куратор академічної групи  1 курсу",189,"2.2.1 Виконання обов'язків куратора академічної групи: куратор академічної групи  1 курсу"]
["2.2.2","Виконання обов'язків куратора академічної групи: куратор академічної групи  2 курсу",190,"2.2.2 Виконання обов'язків куратора академічної групи: куратор академічної групи  2 курсу"]
["2.3","Відповідальний за підтримку роботи сайта кафедри, факультету, університету (розроблення контенту, розміщення інформації)",191,"2.3 Відповідальний за підтримку роботи сайта кафедри, факультету, університету (розроблення контенту, розміщення інформації)"]
["2.4","Виконання обов’язків прес-служби на факультеті",192,"2.4 Виконання обов’язків прес-служби на факультеті"]
["3.1.1.1","Виконання обов’язків заступника декана: з навчальної роботи",193,"3.1.1.1 Виконання обов’язків заступника декана: з навчальної роботи"]
["3.1.1.2","Виконання обов’язків заступника декана: за іншими видами роботи",194,"3.1.1.2 Виконання обов’язків заступника декана: за іншими видами роботи"]
["3.1.2","Керівництво кафедрою, організація роботи кафедри (завідувач кафедри)",195,"3.1.2 Керівництво кафедрою, організація роботи кафедри (завідувач кафедри)"]
["4.1.1","Виконання обов’язків відповідального за організацію та керівника програми літньої (зимової) школи ",196,"4.1.1 Виконання обов’язків відповідального за організацію та керівника програми літньої (зимової) школи "]
["4.1.2","Участь у проведенні літньої (зимової) школи (занять та заходів) ",197,"4.1.2 Участь у проведенні літньої (зимової) школи (занять та заходів) "]
["4.1.3","Організація співробітництва з технікумами та коледжами",198,"4.1.3 Організація співробітництва з технікумами та коледжами"]
["4.1.4","Організація співробітництва з загальноосвітніми навчальними закладами",199,"4.1.4 Організація співробітництва з загальноосвітніми навчальними закладами"]
["4.1.5","Організація співробітництва з установами для співпраці з підготовки фахівців",200,"4.1.5 Організація співробітництва з установами для співпраці з підготовки фахівців"]
["4.1.6","Організація і проведення консультацій та підготов-ка школярів до учнівських предметних олімпіад, конкурсів Малої академії наук, турнірів юних інформатиків, тощо",201,"4.1.6 Організація і проведення консультацій та підготов-ка школярів до учнівських предметних олімпіад, конкурсів Малої академії наук, турнірів юних інформатиків, тощо"]
["4.1.7.1","Участь у підготовці та проведенні учнівських олімпіад: робота в організаційному комітеті",202,"4.1.7.1 Участь у підготовці та проведенні учнівських олімпіад: робота в організаційному комітеті"]
["4.1.7.2","Участь у підготовці та проведенні учнівських олімпіад: проведення олімпіад",203,"4.1.7.2 Участь у підготовці та проведенні учнівських олімпіад: проведення олімпіад"]
["4.1.7.3","Участь у підготовці та проведенні учнівських олімпіад: перевірка робіт учнівської олімпідади",204,"4.1.7.3 Участь у підготовці та проведенні учнівських олімпіад: перевірка робіт учнівської олімпідади"]
["4.1.8","Проведення профорієнтаційної роботи в соціальних мережах",205,"4.1.8 Проведення профорієнтаційної роботи в соціальних мережах"]
["4.1.9","Організація та прове-дення екскурсій університетом",206,"4.1.9 Організація та прове-дення екскурсій університетом"]
["4.1.10","Участь у роботі постійних виїзних (мобільних) груп з профорієнтації",207,"4.1.10 Участь у роботі постійних виїзних (мобільних) груп з профорієнтації"]
["4.1.11","Виконання обов'язків від-повідального за проф-орієнтаційну роботу на громадських засадах",208,"4.1.11 Виконання обов'язків від-повідального за проф-орієнтаційну роботу на громадських засадах"]
["4.1.12.1","Участь у підготовці та проведенні \"Пробного зовнішнього незалежного оцінювання навчальних досягнень випуск-ників шкіл (ЗНО)\": перевірка завдань - тестових",209,"4.1.12.1 Участь у підготовці та проведенні \"Пробного зовнішнього незалежного оцінювання навчальних досягнень випуск-ників шкіл (ЗНО)\": перевірка завдань - тестових"]
["4.1.12.2","Участь у підготовці та проведенні \"Пробного зовнішнього незалежного оцінювання навчальних досягнень випуск-ників шкіл (ЗНО)\": перевірка завдань - відкритої форми",210,"4.1.12.2 Участь у підготовці та проведенні \"Пробного зовнішнього незалежного оцінювання навчальних досягнень випуск-ників шкіл (ЗНО)\": перевірка завдань - відкритої форми"]
["4.1.12.3","Участь у підготовці та проведенні \"Пробного зовнішнього незалежного оцінювання навчальних досягнень випуск-ників шкіл (ЗНО)\": перевірка завдань - творів",211,"4.1.12.3 Участь у підготовці та проведенні \"Пробного зовнішнього незалежного оцінювання навчальних досягнень випуск-ників шкіл (ЗНО)\": перевірка завдань - творів"]
["4.1.12.4","Участь у підготовці та проведенні \"Пробного зовнішнього незалежного оцінювання навчальних досягнень випуск-ників шкіл (ЗНО)\": участь в організаційному комітеті",212,"4.1.12.4 Участь у підготовці та проведенні \"Пробного зовнішнього незалежного оцінювання навчальних досягнень випуск-ників шкіл (ЗНО)\": участь в організаційному комітеті"]
["4.1.13","Участі в розробці заходів та проведенні поточної роботи з формуванні іміджу університету",213,"4.1.13 Участі в розробці заходів та проведенні поточної роботи з формуванні іміджу університету"]
["5.1","Організація програми перебування студентів іноземних країн, аспірантів (PhD), викладачів у рамках програм мобільності ",214,"5.1 Організація програми перебування студентів іноземних країн, аспірантів (PhD), викладачів у рамках програм мобільності "]
["5.2","Координатор міжнародної програми",215,"5.2 Координатор міжнародної програми"]
["5.3","Участь у міжнародних Літніх школах, семінарах під патронатом МОН України, ЄС чи університетів-партнерів ХНЕУ ім. С. Кузнеця ",216,"5.3 Участь у міжнародних Літніх школах, семінарах під патронатом МОН України, ЄС чи університетів-партнерів ХНЕУ ім. С. Кузнеця "]

{"sheet":"СПИСКИ","index":8,"n_rows":32,"n_cols":11,"rows_kept":32,"cut":false,"hidden":true,"merged":[]}
["ФАКУЛЬТЕТИ","код","Декани","код","КАФЕДРИ","Завідувачі кафедр","ПОСАДИ","ВЧЕНЕ ЗВАННЯ","Примітка","Підсумковий результат ","Термін виконання"]
[]
["Міжнародних відносин і журналістики",101,"Птащенко О.В.",101,"Міжнародних економічних відносин","Отенко І.П.","Завідувач кафедри","Професор","Зовнішній сумісник","Друкована праця","I семестр"]
["Фінансів і обліку",201,"Проноза П.В.",102,"Управління соціальними комунікаціями","Яресько К.В.","Професор","Доцент","Внутрішній сумісник","Рукопис","II семестр"]
["Менеджменту і маркетингу",301,"Вовк В.А.",103,"Міжнародних відносин, політичних наук і практичної філософії","Кузь О.М.","Доцент","Старший науковий співробітник",null,null,"Протягом року"]
["Інформаційних технологій",401,"Коц Г.П.",104,"Педагогіки, іноземної філології та переводу","Борова Т.А.","Старший викладач","Старший дослідник"]
["Економіки і права",501,"Бріль М.С.",201,"Фінансів","Журавльова І.В.","Викладач"]
["Міжнародної економіки і підприємництва",601,"Шталь Т.В.",202,"Банківської справи і фінансових послуг","Колодізєв О.М."]
["Підготовки іноземних громадян",701,"Єрмоленко О.А.",203,"Митної справи","Тищенко В.Ф."]
[null,null,null,204,"Обліку і бізнес-консалтингу","Пилипенко А.А."]
[null,null,null,205,"Вищої математики та економіко-математичних методів","Малярець Л.М."]
[null,null,null,301,"Менеджменту, логістики та інновацій","Ястремська О.М."]
[null,null,null,302,"Менеджменту та бізнесу","Лепейко Т.І."]
[null,null,null,303,"Маркетингу","Гриневич Л.В."]
[null,null,null,401,"Інформаційних систем","Ушакова І.О."]
[null,null,null,402,"Комп’ютерних систем і технологій ","Пушкар О.І."]
[null,null,null,403,"Економічної кібернетики і системного аналізу","Гур’янова Л.С."]
[null,null,null,404,"Інформатики та комп’ютерної техніки ","Удовенко С.Г."]
[null,null,null,405,"Кібербезпеки та інформаційних технологій","Євсеєв С.П."]
[null,null,null,506,"Статистики і економічного прогнозування","Раєвнєва О.В."]
[null,null,null,501,"Соціальної економіки","Назарова Г.В."]
[null,null,null,502,"Економіки підприємства та організації бізнесу","Панчук А.С."]
[null,null,null,503,"Правового регулювання економіки","Лук'янчиков О. М."]
[null,null,null,504,"Державного управління, публічного адміністрування та регіональної економіки","Гавкалова Н.Л."]
[null,null,null,505,"Економічної теорії та економічної політики","Мащенко М.А."]
[null,null,null,601,"Міжнародної економіки і менеджменту ","Проскурніна Н.В."]
[null,null,null,603,"Підприємництва і готельно-ресторанного бізнесу","Салун М.М."]
[null,null,null,602,"Туризму","Сущенко О.А."]
[null,null,null,604,"Технологій і безпеки життєдіяльності","Буц Ю.В."]
[null,null,null,701,"Українознавства і мовної підготовки іноземних громадян","Черемська О.С."]
[null,null,null,702,"Фізичного виховання та спорту ","Маракушин А.І."]
[null,null,null,703,"Іноземних мов та міжкультурної комунікації","Савицька Л.В."]

{"sheet":"Лист2","index":9,"n_rows":0,"n_cols":0,"rows_kept":0,"cut":false,"hidden":true,"merged":[]}

{"sheet":"Лист3","index":10,"n_rows":0,"n_cols":0,"rows_kept":0,"cut":false,"hidden":true,"merged":[]}

{"sheet":"Лист4","index":11,"n_rows":0,"n_cols":0,"rows_kept":0,"cut":false,"hidden":true,"merged":[]}